Cogmind - Beta 15 *** ADVENTURER MODE // 2025.09.01 @ 23:04:55 Player: Knightshade Result: Destroyed by G-34 Mercenary with Small Laser Performance ------------- Evolutions (1) 500 Regions Visited (5) 1000 Robots Destroyed (108) 540 Value Destroyed (2907) 2907 Prototype IDs (11) 220 Alien Tech Used (0) 0 Bonus (760) 760 TOTAL SCORE: 5927 Bonus ------- High Alert Combat Kills 25 Follower Combat Kills 35 Entered Garrisons 200 Used RIF Installer 500 Cogmind --------- Core Integrity 0/400 Matter 300/300 Energy 254/280 System Corruption 0% Temperature Cool (11) Movement Rolling (140) Ox3 Location -9/Garrison Parts ------- > --- POWER (1) -------- Cooled Ion Engine > --- PROPULSION (2) --- Compact Wheel Armored Wheel > --- UTILITY (4) ------ Huge Storage Unit Advanced Targeting Computer Advanced Targeting Computer Advanced Targeting Computer > --- WEAPON (2) ------- Improved EM Shotgun Improved EM Shotgun > --- INVENTORY (25) --- Improved Flight Unit Improved Flight Unit Improved Flight Unit Improved Flight Unit High-capacity Storage Unit Machine Analyzer Improved Sensor Array Experimental Targeting Computer Hardened Light Armor Plating Hardened Light Armor Plating Relay Coupler [Grunt] (27) Relay Coupler [Grunt] (34) Relay Coupler [Brawler] (29) Relay Coupler [Brawler] (27) Relay Coupler [Sentry] (22) Relay Coupler [Behemoth] (10) Improved EM Shotgun Shock Rifle Advanced Beam Cannon Advanced Beam Cannon Improved Grenade Launcher Plasma Cutter Katana Axe Peak State ------------ > --- POWER ------------ Cooled Ion Engine > --- PROPULSION ------- Armored Wheel Armored Wheel > --- UTILITY ---------- Huge Storage Unit Advanced Targeting Computer Advanced Targeting Computer Advanced Targeting Computer > --- WEAPON ----------- Heavy Assault Cannon > --- INVENTORY -------- Light Ion Engine Improved Flight Unit Improved Flight Unit Improved Flight Unit Improved Flight Unit High-capacity Storage Unit Machine Analyzer Improved Sensor Array Experimental Targeting Computer Hardened Light Armor Plating Hardened Light Armor Plating Relay Coupler [Behemoth] Improved EM Shotgun Improved EM Shotgun Improved EM Shotgun Shock Rifle Advanced Beam Cannon Advanced Beam Cannon Improved Grenade Launcher Plasma Cutter Axe [Rating: 29] Favorites ----------- Power Ion Engine Engine Ion Engine Propulsion Armored Wheel Leg Aluminum Leg Wheel Armored Wheel Utility Advanced Targeting Computer Device Seismic Detector Storage High-capacity Storage Unit Processor Advanced Targeting Computer Protection Hardened Medium Armor Plating Weapon Improved EM Shotgun Energy Gun Improved EM Shotgun Energy Cannon Light EM Pulse Cannon Ballistic Gun Light Assault Rifle Ballistic Cannon Heavy Assault Cannon Launcher Improved Grenade Launcher Special Weapon Plasma Cutter Slashing Weapon Axe Special Melee Weapon Datajack Build | -11 -10 -10 -9 -9 -9 ------- Run | Yrd Mat Min Mat Sto Gar Slots Evolved 2 | . . . 2 . . Power . | . . . . . . Propulsion . | . . . . . . Utility 2 | . . . 2 . . Weapon . | . . . . . . Parts Attached 42 | 7 3 2 25 3 2 Power 4 | 1 . . 2 1 . Engine 4 | 1 . . 2 1 . Core . | . . . . . . Reactor . | . . . . . . Propulsion 9 | 2 . 1 4 . 2 Treads . | . . . . . . Leg 1 | . . . . . 1 Wheel 8 | 2 . 1 4 . 1 Hover . | . . . . . . Flight . | . . . . . . Utility 14 | 2 2 . 9 1 . Device 3 | 1 . . 2 . . Storage 4 | 1 2 . . 1 . Processor 6 | . . . 6 . . Hackware . | . . . . . . Protection 1 | . . . 1 . . Artifact . | . . . . . . Weapon 15 | 2 1 1 10 1 . Energy Gun 5 | 1 . . 4 . . Energy Cannon 2 | . . . 2 . . Ballistic Gun 3 | 1 1 1 . . . Ballistic Cannon 1 | . . . 1 . . Launcher 1 | . . . 1 . . Special Weapon 1 | . . . 1 . . Impact Weapon . | . . . . . . Slashing Weapon 1 | . . . . 1 . Piercing Weapon . | . . . . . . Special Melee Weapon 1 | . . . 1 . . Unidentified Prototypes . | . . . . . . Parts Lost 9 | . 1 . 5 1 2 Power 1 | . . . 1 . . Propulsion 4 | . 1 . 2 . 1 Utility 2 | . . . 2 . . Weapon 2 | . . . . 1 1 Highest Loss Streak 2 | . 1 . 2 1 1 To Critical Strikes . | . . . . . . Average Backups 15 | 1 4 9 16 19 22 Power . | . 1 1 1 1 . Propulsion 1 | . . . 1 3 4 Utility 4 | . 1 4 4 5 10 Weapon 6 | . 1 3 8 8 7 Tool/Special . | . . . . . . Unused Backups 25 | . . . 2 1 22 Power 1 | . . . . . 1 Propulsion 5 | . . . . . 5 Utility 12 | . . . . 1 11 Weapon 7 | . . . 2 . 5 Tool/Special . | . . . . . . Average Slot Usage (%) 91 | . 96 86 89 88 96 Engine 11 | . 14 14 10 11 11 Wheel 21 | . 24 15 19 22 20 Device 6 | . 14 14 8 . . Storage 11 | . 14 14 11 11 11 Processor 19 | . . . 16 33 33 Protection 1 | . . . 4 . . Energy Gun 5 | . . . 6 . 14 Energy Cannon 2 | . . . 7 . . Ballistic Gun 6 | . 27 28 . . . Ballistic Cannon 3 | . . . 3 9 2 Peak Build Rating 29 | 7 7 11 26 28 29 Average Rating 19 | 5 6 8 19 26 28 On Entrance 13 | . 7 6 11 26 28 Naked Turns . | . . . . . . Heaviest Build 100 | 14 49 50 69 100 100 Greatest Support 28 | 26 26 26 26 24 28 Greatest Overweight (x) 19 | . 3 3 19 4 9 Average Overweight (x) 2 | . . 2 2 3 3 Largest Inventory Capacity 25 | 8 20 20 20 25 25 Average Capacity 20 | 7 15 20 20 23 25 Most Carried 25 | 2 5 13 20 22 25 Average Carried 15 | 1 4 10 17 19 23 Final Capacity 25 | 8 20 20 20 25 25 Final Carried 24 | 2 5 13 20 20 24 Class Distribution -------------------- 92% | Mutant 4% | Commander-Mutant Dominant Class ---------------- Mutant | -10/Materials Mutant | -10/Mines Mutant | -9/Materials Mutant | -9/Storage Mutant | -9/Garrison Resources | -11 -10 -10 -9 -9 -9 ----------- Run | Yrd Mat Min Mat Sto Gar Matter Collected 1620 | 217 123 15 638 361 266 Remotely . | . . . . . . Salvage Created 3346 | 110 360 15 1699 401 761 Parts 235 | 3 34 1 123 34 40 Haulers Intercepted 14 | . 2 . 6 6 . Recyclers Shooed . | . . . . . . Parts Field Recycled . | . . . . . . Retrieved Matter . | . . . . . . Parts Self-Destructed . | . . . . . . Prevented . | . . . . . . Kills | -11 -10 -10 -9 -9 -9 ------- Run | Yrd Mat Min Mat Sto Gar Combat Hostiles Destroyed 69 | . 11 . 35 4 19 Guns 29 | . 11 . 7 . 11 Cannons 28 | . . . 16 4 8 AOE 11 | . . . 11 . . Classes Destroyed 14 | 2 5 1 5 . 1 Worker 4 | . . 1 2 1 . Builder 3 | . . . 1 2 . Tunneler 3 | 1 . . 2 . . Hauler 14 | . 2 . 6 6 . Recycler 1 | 1 . . . . . Mechanic 2 | . . . 1 . 1 Operator 4 | . . . 2 2 . Watcher 8 | . 2 . 4 2 . Swarmer 18 | . 8 . 7 . 3 Grunt 31 | . 2 . 18 1 10 Brawler 1 | . . . . . 1 Duelist 3 | . . . 1 . 2 Sentry 15 | . . . 9 3 3 Subdweller 1 | . 1 . . . . Best Kill Streak 8 | 1 6 1 8 5 7 Combat Bots Only 7 | . 3 . 7 1 7 Max Kills in Single Turn 3 | 1 2 1 3 1 2 Gunslinging 1 | . 1 . . . 1 Exploded 3 | . . . 3 . . Melee . | . . . . . . Uniques/NPCs Destroyed . | . . . . . . Combat | -11 -10 -10 -9 -9 -9 -------- Run | Yrd Mat Min Mat Sto Gar Hostile Shots Fired 248 | . 54 . 107 23 64 Missed 66 | . 15 . 29 7 15 Hits 182 | . 39 . 78 16 49 Melee 3 | . . . 1 . 2 Projectile 179 | . 39 . 77 16 47 Critical Strikes 4 | . . . 3 1 . Damage Taken 1998 | . 325 . 943 290 440 Core 483 | . 77 . 243 73 90 Absorbed by Shields . | . . . . . . Ignored by Resistances 597 | . 99 . 279 84 135 Core Remaining (%) 84 | 100 . 69 . . . Volleys Fired 207 | 6 36 2 86 34 43 Largest 2 | 2 2 2 2 1 2 Hottest 112 | 70 40 45 112 50 90 Shots Fired 326 | 12 72 4 144 34 60 Gun 182 | 12 72 4 60 . 34 Cannon 140 | . . . 80 34 26 Launcher 3 | . . . 3 . . Special 1 | . . . 1 . . Kinetic 174 | 6 72 4 32 34 26 Thermal 7 | 6 . . 1 . . Explosive 3 | . . . 3 . . Electromagnetic 142 | . . . 108 . 34 Robot Hit Streak 34 | 4 13 5 34 21 24 Robot Miss Streak 3 | 1 3 1 2 1 3 Penetration Max 1 | . . . 1 1 . Secondary Targets 5 | . 2 . 1 . 2 Max Gunslinging Chain 1 | . 1 . 1 . 1 Shots Hit Robots 265 | 8 52 3 114 33 55 Core Hits 137 | 4 23 2 65 12 31 Critical Kills . | . . . . . . Critical Parts Destroyed 1 | . 1 . . . . Critical Strikes 13 | . 1 . 3 7 2 Destroy 1 | . 1 . . . . Blast 11 | . . . 2 7 2 Corrupt 1 | . . . 1 . . Melee Attacks 7 | . . . . 5 2 Impact . | . . . . . . Slashing 7 | . . . . 5 2 Piercing . | . . . . . . Sneak Attacks 1 | . . . . 1 . Combat Hostiles . | . . . . . . Follow-up Attacks . | . . . . . . Damage Inflicted 8052 | 78 509 43 3758 1840 1824 Guns 1897 | 78 509 43 689 . 578 Cannons 5014 | . . . 2140 1722 1152 Explosions 954 | . . . 929 . 25 Melee 187 | . . . . 118 69 Ramming . | . . . . . . Kinetic 4579 | 30 509 43 1123 1722 1152 Thermal 509 | 48 . . 436 . 25 Explosive 451 | . . . 451 . . Electromagnetic 2326 | . . . 1748 . 578 Impact . | . . . . . . Slashing 187 | . . . . 118 69 Piercing . | . . . . . . Highest Corruption . | . . . . . . Average Corruption . | . . . . . . Corruption Purged . | . . . . . . Corruption Blocked . | . . . . . . Overload Shots . | . . . . . . Overflow Damage 380 | . . . 91 263 26 Projectiles 280 | . . . 49 205 26 Explosions 42 | . . . 42 . . Melee 58 | . . . . 58 . Knockbacks 5 | . . . 3 2 . Impact . | . . . . . . Kinetic 5 | . . . 3 2 . Secondary . | . . . . . . Self-Inflicted Damage 146 | . . . 146 . . Shots 5 | . . . 5 . . Rammed . | . . . . . . Targets Rammed . | . . . . . . Kicked . | . . . . . . Crushed . | . . . . . . Highest Temperature 210 | 80 9 4 210 9 84 Average Temperature 44 | 33 7 3 53 5 26 Received Heat Transfer 795 | . 81 . 402 96 216 Siege Activations . | . . . . . . Martial Activations . | . . . . . . Shielding Activations . | . . . . . . Robots Disrupted . | . . . . . . Combat Hostiles . | . . . . . . Robots Corrupted 2 | . . . 2 . . Combat Hostiles 1 | . . . 1 . . Parts Fried 12 | . . . 7 . 5 Impact Corruptions . | . . . . . . Robots Melted . | . . . . . . Combat Hostiles . | . . . . . . Parts Melted . | . . . . . . Heat Transferred 748 | 148 . . 550 . 50 Parts Sabotaged . | . . . . . . Parts Stolen . | . . . . . . Parts Stripped . | . . . . . . Power Chain Reactions 8 | . . . 6 . 2 Alert | -11 -10 -10 -9 -9 -9 ------- Run | Yrd Mat Min Mat Sto Gar Maximum Alert Level 2 | . . . 1 . 2 Low Security (%) 77 | 100 100 100 86 100 14 Level 1 9 | . . . 13 . 19 Level 2 12 | . . . . . 65 Level 3 . | . . . . . . Level 4 . | . . . . . . Level 5 . | . . . . . . High Security . | . . . . . . Max Security . | . . . . . . Peak Influence 551 | 5 119 15 273 53 551 Initial 1 | . . . . 1 . Average 133 | . 43 1 111 8 410 Influence Increases 2374 | 10 364 20 1080 309 591 Destroy 0b10 Robot/C 1380 | . 200 . 700 100 380 Destroy 0b10 Robot/NC 210 | 10 20 5 90 75 10 Destroy Leader 294 | . 48 . 180 56 10 Allied During Kill 17 | . . . . 17 . Successful Hack 54 | . 21 . 13 20 . Disable Machine 45 | . . . 27 18 . Anti-Garrison Action 150 | . . . . . 150 Destroy Structure 74 | . . . 55 8 11 Partial Spotted 15 | . 15 . . . . Lose Combat Pursuer 135 | . 60 15 15 15 30 Influence Decreases 1823 | 10 364 20 1075 314 40 Entered New Map 4 | . . . . 4 . Time Decay 1660 | 10 354 20 1025 251 . Lost Part 80 | . 10 . 50 . 20 Lost Ally 79 | . . . . 59 20 Squads Dispatched 2 | . . . 2 . . Investigation 1 | . . . 1 . . Extermination . | . . . . . . Reinforcement 1 | . . . 1 . . Assault . | . . . . . . Garrison . | . . . . . . Intercept . | . . . . . . Searches Triggered . | . . . . . . Construction Impeded . | . . . . . . Haulers Reinforced . | . . . . . . Active Scanning Responses . | . . . . . . Cargo Convoy Interrupts . | . . . . . . Stealth | -11 -10 -10 -9 -9 -9 --------- Run | Yrd Mat Min Mat Sto Gar Distress Signals 8 | . 5 1 1 1 . Communications Jammed . | . . . . . . Distress Signals . | . . . . . . Times Spotted 106 | . 18 1 45 17 25 Peak Tracking Total 7 | . 6 2 7 4 4 Tactical Retreats 7 | . 3 1 1 1 1 Traps | -11 -10 -10 -9 -9 -9 ------- Run | Yrd Mat Min Mat Sto Gar Traps Triggered 5 | . 1 . 2 . 2 Indirectly . | . . . . . . Trap Hack Attempts 46 | . . . 11 35 . Triggered 1 | . . . 1 . . Disarmed 2 | . . . . 2 . Reprogrammed 3 | . . . . 3 . Reused . | . . . . . . Traps Extracted . | . . . . . . Installed . | . . . . . . Triggered . | . . . . . . Objects Rigged 1 | . . . 1 . . Exploded 1 | . . . 1 . . Machines | -11 -10 -10 -9 -9 -9 ---------- Run | Yrd Mat Min Mat Sto Gar Machines Disabled 8 | . . . 3 2 3 Max in Single Turn 2 | . . . 2 1 1 Garrison Relay 2 | . . . . . 2 Machines Repaired . | . . . . . . Machines Dismantled . | . . . . . . Machines Sabotaged . | . . . . . . Overloaded Fab Kills . | . . . . . . Hacking | -11 -10 -10 -9 -9 -9 --------- Run | Yrd Mat Min Mat Sto Gar Machines Accessed 29 | . 8 1 11 8 1 Terminals 25 | . 8 . 9 7 1 Fabricators . | . . . . . . Repair Stations . | . . . . . . Recycling Units . | . . . . . . Scanalyzers 2 | . . . 2 . . Garrison Access 1 | . . . . 1 . Total Hacks 100 | . 34 1 38 24 3 Successful 65 | . 25 1 26 13 . Failed 33 | . 8 . 11 11 3 Catastrophic 2 | . . . 1 1 . Database Lockouts 2 | . 1 . 1 . . Manual 75 | . 30 . 29 16 . Terminals 92 | . 34 . 32 23 3 Fabricators . | . . . . . . Repair Stations . | . . . . . . Recycling Units . | . . . . . . Scanalyzers 6 | . . . 6 . . Garrison Access 1 | . . . . 1 . Terminal Hacks 23 | . 12 1 5 5 . Prototype ID Bank 16 | . 12 . 3 1 . Open Door 3 | . . 1 . 2 . Branch Access Points 1 | . . . 1 . . Disarm Traps 1 | . . . . 1 . Hauler Manifests 1 | . . . 1 . . Registered Components 1 | . . . . 1 . Fabricator Hacks . | . . . . . . Repair Station Hacks . | . . . . . . Recycling Unit Hacks . | . . . . . . Scanalyzer 6 | . . . 6 . . Insert Component 3 | . . . 3 . . Analyze 3 | . . . 3 . . Garrison Access Hacks 1 | . . . . 1 . Unlock Access 1 | . . . . 1 . Unauthorized Hacks 35 | . 13 . 15 7 . Terminals 35 | . 13 . 15 7 . Botnet 15 | . 8 . 5 2 . Detonate 1 | . . . 1 . . Skim 19 | . 5 . 9 5 . Fabricators . | . . . . . . Repair Stations . | . . . . . . Recycling Units . | . . . . . . Scanalyzers . | . . . . . . Garrison Access . | . . . . . . Data Cores Recovered 3 | . . . 1 2 . Used . | . . . . . . Hacking Detections 23 | . 7 . 10 5 1 Full Trace Events 1 | . . . . . 1 Feedback Events . | . . . . . . Feedback Blocked . | . . . . . . Robot Schematics Acquired . | . . . . . . Robots Built . | . . . . . . Authchips . | . . . . . . Time . | . . . . . . Total Robot Build Rating . | . . . . . . Part Schematics Acquired 2 | . . . 2 . . Parts Built . | . . . . . . Authchips . | . . . . . . Time . | . . . . . . Total Part Build Rating . | . . . . . . Parts Repaired . | . . . . . . Time . | . . . . . . Parts Recycled . | . . . . . . Recycled Matter . | . . . . . . Retrieved Matter . | . . . . . . Retrieved Components . | . . . . . . Parts Scanalyzed 2 | . . . 2 . . Part Schematics Acquired 2 | . . . 2 . . Parts Damaged . | . . . . . . Bothacking | -11 -10 -10 -9 -9 -9 ------------ Run | Yrd Mat Min Mat Sto Gar Used RIF Installer 1 | . . . . . 1 Robots Hacked . | . . . . . . Non-combat . | . . . . . . Combat . | . . . . . . Robot Hacks Applied . | . . . . . . Relay Couplers Released 6 | . . . . . 6 Machine Destruction 6 | . . . . . 6 Fabnet Peak Effective % . | . . . . . . Robots Rewired . | . . . . . . Allies Hacked . | . . . . . . Hacks Repelled . | . . . . . . Allies | -11 -10 -10 -9 -9 -9 -------- Run | Yrd Mat Min Mat Sto Gar Total Allies 10 | . . . . 10 . Largest Group 10 | . . . . 10 1 Highest-Rated Group 88 | . . . . 88 8 Highest-Rated Ally 16 | . . . . 16 8 Total Orders . | . . . . . . Ally Attacks 44 | . . . . 41 3 Total Damage 356 | . . . . 345 11 Kills 3 | . . . . 3 . Allies Corrupted . | . . . . . . Allies Melted . | . . . . . . Intel | -11 -10 -10 -9 -9 -9 ------- Run | Yrd Mat Min Mat Sto Gar Active Infowar (turns) 2020 | 8 1006 241 765 . . Seismic 2020 | 8 1006 241 765 . . Robot Analysis Total . | . . . . . . Derelict Logs Recovered 1 | . . 1 . . . Drone Launches . | . . . . . . Drone Recoveries . | . . . . . . Exploration | -11 -10 -10 -9 -9 -9 ------------- Run | Yrd Mat Min Mat Sto Gar Turns Passed 5640 | 80 1006 241 2194 1009 1110 Spaces Moved 3468 | 57 686 145 1466 469 645 Core 2 | 1 . . 1 . . Treads . | . . . . . . Legs 4 | . . . . . 4 Wheels 3462 | 56 686 145 1465 469 641 Hover . | . . . . . . Flight . | . . . . . . Fastest Speed 50 | 50 90 105 110 120 135 Average Speed 124 | 89 103 138 120 135 148 Slowest Speed 1000 | 100 145 145 1000 150 750 Overloaded Moves . | . . . . . . Propulsion Burnouts . | . . . . . . Robots Hopped . | . . . . . . Potential Cave-ins . | . . . . . . Cave-ins Triggered . | . . . . . . Exploration Rate (%) 57 | 3 97 27 89 72 57 Regions Visited 5 Branch Regions 2 Pre-discovered Areas 5 | . 2 . 1 2 . Known Exits Taken 3 | . . 1 1 1 . Unknown Exits Taken 2 | 1 1 . . . . Scrap Searched . | . . . . . . Spaces Dug 1 | . . . . 1 . Terrain Destroyed 70 | . . . 51 8 11 Melee . | . . . . . . Projectile 14 | . . . 3 8 3 AOE 56 | . . . 48 . 8 Terrain Rammed . | . . . . . . Walls Destroyed . | . . . . . . Machines Disabled . | . . . . . . Actions | -11 -10 -10 -9 -9 -9 --------- Run | Yrd Mat Min Mat Sto Gar Total 4420 | 71 918 180 1739 787 725 Wait 549 | . 190 26 105 228 . Move 3464 | 56 685 144 1465 469 645 Hop . | . . . . . . Pick Up 40 | 2 1 6 19 2 10 Fast Attach 20 | 7 1 1 10 1 . Attach 16 | . . . 9 4 3 Detach 7 | . . . 4 3 . Swap 22 | . 4 1 12 2 3 Drop 26 | . 1 . 18 4 3 Fire 207 | 6 36 2 86 34 43 Melee 7 | . . . . 5 2 Ram . | . . . . . . Kick . | . . . . . . Crush . | . . . . . . Escape Stasis 16 | . . . . . 16 Rewire . | . . . . . . Trap 46 | . . . 11 35 . Miscellaneous . | . . . . . . Route ------- -11/Scrapyard -10/Materials (discovered 6 exits: *Mat x3 / *Min x2 / Sub) -10/Mines (discovered 3 exits: *Mat x2 / Sub) -9/Materials (discovered 6 exits: *Mat x3 / *Min x2 / *Sto) -9/Storage (discovered 3 exits: Mat / Rec / Gar) -9/Garrison (discovered 1 exit: *Mat) History --------- Turn | Location | Event 11 | -11/Scrapyard | Discovered new exit (range 16) 81 | -11/Scrapyard | Entered Materials 137 | -10/Materials | Discovered new exit (range 10) 192 | -10/Materials | Discovered new exit (range 13) 302 | -10/Materials | Build established: Mutant 307 | -10/Materials | Discovered new exit (range 8) 446 | -10/Materials | Discovered new exit (range 9) 564 | -10/Materials | Discovered new exit (range 15) 681 | -10/Materials | Derelicts attacked the area 709 | -10/Materials | Central database locked down 784 | -10/Materials | Learned location of Subcaves (-10) 849 | -10/Materials | Identified exit to Subcaves 903 | -10/Materials | Learned location of 2 exits from Materials 945 | -10/Materials | Learned location of Storage (-9) 975 | -10/Materials | Learned location of 1 exit from Recycling 1017 | -10/Materials | Learned location of 2 exits from Mines 1069 | -10/Materials | Learned Storage stockpile data 1087 | -10/Materials | Entered Mines 1088 | -10/Mines | Identified exit to Materials 1094 | -10/Mines | Met a Derelict bent on vengeance 1138 | -10/Mines | Met a Derelict who couldn't figure out how to use a Trap Extractor 1232 | -10/Mines | Assembled infested the area 1237 | -10/Mines | Assisted by a Guerilla fighting off Assembled 1300 | -10/Mines | Discovered exit to Materials (range 8) 1328 | -10/Mines | Entered Materials 1328 | -9/Materials | Evolved 2 slots: Utility x2 1329 | -9/Materials | Identified exit to Storage 1330 | -9/Materials | Identified exit to Materials 1330 | -9/Materials | Identified exit to Mines 1613 | -9/Materials | Destroyed 7 combat bots 2023 | -9/Materials | Central database locked down 2099 | -9/Materials | Learned Storage trap positions 2123 | -9/Materials | Learned 2 Storage zone layouts 2145 | -9/Materials | Learned 2 Storage zone layouts 2148 | -9/Materials | Learned 2 Materials zone layouts 2158 | -9/Materials | Learned location of 2 exits from Materials 2177 | -9/Materials | Loaded intel: 2 repair station locations 2204 | -9/Materials | Learned location of Recycling (-9) 2906 | -9/Materials | Core integrity fell below 50% 3522 | -9/Materials | Entered Storage 3523 | -9/Storage | Identified exit to Recycling 3524 | -9/Storage | Loaded intel: 15 trap records 3666 | -9/Storage | Met 01-MTF 3753 | -9/Storage | Assisted by bots powering up and referring to "LRC-V3" 3925 | -9/Storage | Learned location of 2 exits from Materials 3999 | -9/Storage | Learned 4 Materials zone layouts 4052 | -9/Storage | Lost 6 allies 4064 | -9/Storage | Learned Materials repair station intel 4064 | -9/Storage | Found Prototype Processor 4118 | -9/Storage | Learned 2 Materials zone layouts 4162 | -9/Storage | Learned location of Mines (-8) 4198 | -9/Storage | Learned location of 1 exit from Storage 4223 | -9/Storage | Learned 2 Storage zone layouts 4260 | -9/Storage | Learned Materials stockpile data 4361 | -9/Storage | Learned 2 Storage zone layouts 4427 | -9/Storage | Learned location of 1 exit from Storage 4531 | -9/Storage | Identified exit to Garrison 4531 | -9/Storage | Entered Garrison 4531 | -9/Garrison | Accompanied by 2 allies (01-MTF) 4534 | -9/Garrison | 01-MTF left 4591 | -9/Garrison | Core integrity fell below 20% 4659 | -9/Garrison | Triggered checkpoint 4691 | -9/Garrison | Garrison Relay disabled 4846 | -9/Garrison | Destroyed 7 combat bots 4869 | -9/Garrison | Discovered exit to Materials (range 10) 4903 | -9/Garrison | Triggered checkpoint 4931 | -9/Garrison | Triggered checkpoint 4979 | -9/Garrison | Garrison Relay disabled 5165 | -9/Garrison | Triggered checkpoint 5195 | -9/Garrison | Installed Relay Interface Framework 5505 | -9/Garrison | Triggered checkpoint 5595 | -9/Garrison | Triggered checkpoint 5640 | -9/Garrison | Triggered checkpoint 5641 | -9/Garrison | Destroyed by G-34 Mercenary with Small Laser Last Messages --------------- 05009_ Field strength at 50. 05010_ Field strength at 40. 05011_ Field strength at 30. 05012_ Field strength at 20. 05013_ Field strength at 10. 05014_ Stasis field depleted. 05041_ Sneak attack on R-06 Scavenger. 05041_ R-06 Scavenger destroyed. 05044_ Acquired 39 matter. 05048_ Dropped Lgt. Ion Engine. 05049_ Acquired Com. Wheel. 05051_ Dropped Aluminum Leg. 05165_ Beams of light sweep through the air. An alarm sounds. 05166_ S-10 Pest destroyed. 05166_ Switching to secondary target: S-10 Pest. 05166_ S-10 Pest destroyed. Initiating installation procedure... 05195_ Relay Interface Framework installed. 05363_ Acquired 20 matter. 05505_ Beams of light sweep through the air. An alarm sounds. Map ----- +----------------------------------------------------+ | ?????????????????????????????????????????# ##""" | | ?????????????????????????????????????????# #???? | | ?????????????????????????????????????????# #???? | | ?????????????????????????????????????????# #???? | | ?????????????????????????????????????????# #???? | | ?????????????????????????????????????????# #???? | | ?????????????????????????????????????????# #???? | | ???????????????####?###################### #???? | | ?????????????### #?# #???? | | ?????????????#"# #?# #???? | | ?????????????#" #?# #???? | | ?????????????#" #?# ######################???? | | ?????????????#" #?# #???#????????????????????? | | ?????????????#"# #?# #??? ????????????????????? | | ?????????????### #?# #??? ????????????????????? | | ???????????????# #?# #??? ????????????????????? | | ???????????????# #?# #??s#?#??????????????????? | | ?????????????### #?# #?? # #??????????????????? | | ?????????????# #?# #??s#g#??????????????????? | | ?????????????# #?# #??s g#??????????????????? | | ?????????????# #?# #? s #??????????????????? | | ?????????????### #?# #? #??????????????????? | | ???????????????# #?# #? ???????????????????? | | ???????????????# ### ## #????????????????????? | | ???????????????# #????????????????????? | | ???????????????# @ #????????????????????? | | ???????????????###### ## #????????????????????? | | ????????????????????# #? #????????????????????? | | ????????????????????# #??##????????????????????? | | ????????????????????# #????????????????????????? | | ???????????????????? #????????????????????????? | | ??????????????????? #????????????????????????? | | ?????????????????? #????????????????????????? | | ?????????????????########????????????????????????? | | ?????????????????????????????????????????????????? | | ?????????????????????????????????????????????????? | | ?????????????????????????????????????????????????? | | ?????????????????????????????????????????????????? | | ?????????????????????????????????????????????????? | | ?????????????????????????????????????????????????? | | ?????????????????????????????????????????????????? | | ?????????????????????????????????????????????????? | | ?????????????????????????????????????????????????? | | | | | | | | | | | | | | | +----------------------------------------------------+ Best States ------------- Heat Dissipation 38 Energy Generation 14 Energy Capacity 280 Matter Stores 300 Matter Capacity 300 Sight Range 16 Terrain Scan Density 10 Armor Coverage 225 Resistance: KI 20 Resistance: TH 20 Resistance: EX 20 Resistance: EM 20 Resistance: I 20 Resistance: S 20 Resistance: P 20 Evasion (%) 42 Targeting Accuracy 24 Offensive Hacking 10 Trap Extractor Capacity 6 Item Schematics ----------------- Machine Analyzer | -9/Materials | Scanalyzed Adv. Targeting Computer | -9/Materials | Scanalyzed Robot Schematics ------------------ None Fabricated ------------ Nothing Repaired ---------- Nothing Alien Tech Used ----------------- None Achievements -------------- None Challenges ------------ None Game ------ Seed AblativeFrostGravjet Manual? 0 Play Time 00:43:24 Cumulative 118.0 hours Start 2025.09.01 @ 21:52:45 End 2025.09.01 @ 23:04:55 Sessions 3 Manual Loads 0 Difficulty Adventurer Special Mode None Game No. 82 Rogue 0 Adventurer 82 Explorer 0 Win Type - Total 0 Types 0/0/0/0/0/0/0/0/0/0 Lore% 27 Gallery% 44 Achievement% 38 Wizard Run 0 Options --------- Layout 0 ASCII 0 Keyboard 0 Movement Mouse Keybinds 0 Fullscreen 1 Font 18/SmallcapsGlow Map View 76x50 Zoom Use 0% Tactical HUD 1 Map Filters NONE Filters NONE Steam 1 RUN: ebdbfffa-def6-472e-a334-46efec994aed